[Event "FIDE WCCC G12 2018"]
[Site "Santiago de Compostela"]
[Date "2018.11.10"]
[Round "6"]
[White "Enkhsaran, Batsaikhan"]
[Black "Omonova, Umida"]
[Result "1/2-1/2"]
[ECO "A52"]
[WhiteElo "1614"]
[BlackElo "1854"]
[Annotator "NA"]
[PlyCount "83"]
[EventDate "2018.11.04"]
[EventType "swiss"]
[EventCountry "ESP"]
[SourceTitle "playchess.com"]
[Source "ChessBase"]
[SourceQuality "1"]
[TimeControl "40/5400+30:1800+30"]

1. d4 {[%emt 0:00:00]} Nf6 {[%emt 0:01:00]} 2. c4 {[%emt 0:00:02]} e5 {[%emt 0:00:08]} 3. dxe5 {[%emt 0:00:23]} Ng4 {[%emt 0:03:44]} 4. Nf3 {[%emt 0:00:40]} Bc5 {[%emt 0:00:19]} 5. e3 {[%emt 0:00:26]} Nc6 {[%emt 0:00:06]} 6. Bd2 {[%emt 0:00:34]} Ngxe5 {[%emt 0:02:01]} 7. Nxe5 {[%emt 0:00:20]} Nxe5 {[%emt 0:00:06]} 8. Bc3 {[%emt 0:00:14]} Qe7 {[%emt 0:04:33]} 9. Be2 {[%emt 0:00:40]} O-O {[%emt 0:00:55]} 10. O-O $11 {[%emt 0:02:12]} d6 {[%emt 0:02:59]} 11. Nd2 {[%emt 0:01:50]} Bf5 {[%emt 0:04:34]} 12. Nb3 {[%emt 0:02:06]} Bb6 {[%emt 0:02:12]} 13. Nd4 {[%emt 0:01:02]} Bd7 {[%emt 0:03:04]} 14. Qd2 {[%emt 0:06:32]} f5 {[%emt 0:04:23]} 15. Rae1 {[%emt 0:09:53]} Rad8 {[%emt 0:01:25]} 16. Qc2 {[%emt 0:06:24]} c5 {[%emt 0:02:24]} 17. Nb3 {[%emt 0:08:38]} Bc6 {[%emt 0:01:52]} 18. f4 {[%emt 0:01:08]} Be4 {[%emt 0:04:43]} 19. Qc1 {[%emt 0:02:25]} Nd3 {[%emt 0:10:40]} 20. Bxd3 {[%emt 0:00:15]} Bxd3 {[%emt 0:00:02]} 21. Rf3 {[%emt 0:00:33]} Be4 {[%emt 0:03:25]} 22. Rg3 {[%emt 0:00:23]} Rf7 {[%emt 0:00:18]} 23. Nd2 {[%emt 0:00:32]} d5 {[%emt 0:03:51]} 24. cxd5 {[%emt 0:00:38]} Rxd5 {[%emt 0:00:55]} 25. Nf3 {[%emt 0:05:27]} Bxf3 {[%emt 0:01:26]} 26. gxf3 {[%emt 0:01:06]} Qd8 {[%emt 0:07:28]} 27. Kh1 {[%emt 0:05:28]} Rfd7 {[%emt 0:06:17]} 28. Reg1 {[%emt 0:01:31]} g6 {[%emt 0:00:07]} 29. Be5 {[%emt 0:03:23]} Qe8 {[%emt 0:02:08]} 30. Qc4 {[%emt 0:08:10]} Qf7 {[%emt 0:01:02]} 31. e4 {[%emt 0:06:26]} fxe4 {[%emt 0:00:24]} 32. fxe4 {[%emt 0:00:38]} Rd1 {[%emt 0:00:13]} 33. Qe2 {[%emt 0:08:37]} Rxg1+ {[%emt 0:02:32]} 34. Rxg1 {[%emt 0:00:13]} c4 {[%emt 0:00:46]} 35. Rd1 {[%emt 0:00:57]} Rxd1+ {[%emt 0:04:12]} 36. Qxd1 {[%emt 0:00:24]} Qe6 {[%emt 0:00:18]} 37. Qd5 {[%emt 0:02:30]} Qxd5 {[%emt 0:01:14]} 38. exd5 {[%emt 0:00:07]} Kf7 {[%emt 0:00:09]} 39. Kg2 {[%emt 0:00:39]} Bc5 {[%emt 0:01:28]} 40. Kf3 {[%emt 0:00:00]} Ke7 {[%emt 0:00:00]} 41. Ke4 {[%emt 0:03:09]} b5 {[%emt 0:04:55]} 42. a3 {[%emt 0:11:20]} 1/2-1/2

[Event "FIDE WCCC G12 2018"]
[Site "Santiago de Compostela"]
[Date "2018.11.10"]
[Round "6"]
[White "Tsirekidze, Barbare"]
[Black "Karmanova, Olga Dm."]
[Result "1-0"]
[ECO "B80"]
[WhiteElo "1611"]
[BlackElo "1819"]
[Annotator "NA"]
[PlyCount "67"]
[EventDate "2018.11.04"]
[EventType "swiss"]
[EventCountry "ESP"]
[SourceTitle "playchess.com"]
[Source "ChessBase"]
[SourceQuality "1"]
[TimeControl "40/5400+30:1800+30"]

1. e4 {[%emt 0:00:00]} c5 {[%emt 0:00:00]} 2. Nf3 {[%emt 0:00:00]} e6 {[%emt 0:00:55]} 3. d4 {[%emt 0:00:00]} cxd4 {[%emt 0:00:05]} 4. Nxd4 {[%emt 0:00:00]} Nf6 {[%emt 0:00:23]} 5. Nc3 {[%emt 0:00:27]} d6 {[%emt 0:00:27]} 6. Bd3 {[%emt 0:00:58]} Be7 {[%emt 0:00:23]} 7. O-O {[%emt 0:00:34]} O-O {[%emt 0:00:20]} 8. Be3 {[%emt 0:01:40]} a6 {[%emt 0:01:49]} 9. f4 {[%emt 0:01:53]} b5 {[%emt 0:05:48]} 10. a3 {[%emt 0:02:58]} Bb7 $14 {[%emt 0:01:03]} 11. Kh1 {[%emt 0:03:01]} Nbd7 {[%emt 0:02:07]} 12. Qe2 {[%emt 0:12:31]} Rc8 {[%emt 0:06:02]} 13. Bg1 {[%emt 0:06:23]} Qc7 {[%emt 0:02:46]} 14. Nd1 {[%emt 0:13:33]} Rfe8 {[%emt 0:10:34]} 15. Nb3 {[%emt 0:06:53]} Nb6 {[%emt 0:03:44]} 16. Nd2 {[%emt 0:03:49]} Nfd7 {[%emt 0:04:31]} 17. Rf3 {[%emt 0:05:24]} Bf6 {[%emt 0:05:48]} 18. c3 {[%emt 0:01:40]} g6 {[%emt 0:03:48]} 19. Rh3 {[%emt 0:01:44]} Bg7 {[%emt 0:02:12]} 20. Ne3 {[%emt 0:11:07]} f5 {[%emt 0:02:58]} 21. exf5 {[%emt 0:02:18]} exf5 {[%emt 0:00:36]} 22. Qf2 {[%emt 0:00:50]} Nf6 {[%emt 0:05:02]} 23. Nxf5 {[%emt 0:05:42]} Nbd5 {[%emt 0:13:07]} 24. Nxg7 {[%emt 0:00:22]} Kxg7 {[%emt 0:01:35]} 25. f5 {[%emt 0:02:07]} Qc6 {[%emt 0:05:05]} 26. Bf1 {[%emt 0:05:53]} Nh5 {[%emt 0:08:04]} 27. Qd4+ {[%emt 0:07:08]} Kg8 {[%emt 0:03:06]} 28. fxg6 {[%emt 0:00:37]} hxg6 {[%emt 0:00:08]} 29. Qg4 {[%emt 0:02:41]} Ndf4 {[%emt 0:01:26]} 30. Rf3 {[%emt 0:00:24]} Ne6 {[%emt 0:07:49]} 31. Qxg6+ {[%emt 0:00:20]} Neg7 {[%emt 0:00:08]} 32. Qf7+ {[%emt 0:00:43]} Kh7 {[%emt 0:00:11]} 33. Bd3+ {[%emt 0:01:00]} Kh8 {[%emt 0:00:49]} 34. Qg6 {[%emt 0:01:08]} 1-0

[Event "FIDE WCCC G12 2018"]
[Site "Santiago de Compostela"]
[Date "2018.11.10"]
[Round "6"]
[White "Ke, Rianne"]
[Black "Cai, Jinru"]
[Result "1-0"]
[ECO "B09"]
[WhiteElo "1600"]
[BlackElo "1578"]
[Annotator "NA"]
[PlyCount "91"]
[EventDate "2018.11.04"]
[EventType "swiss"]
[EventCountry "ESP"]
[SourceTitle "playchess.com"]
[Source "ChessBase"]
[SourceQuality "1"]
[TimeControl "40/5400+30:1800+30"]

1. e4 {[%emt 0:00:00]} d6 {[%emt 0:00:00]} 2. d4 {[%emt 0:00:00]} Nf6 {[%emt 0:00:00]} 3. Nc3 {[%emt 0:00:00]} g6 {[%emt 0:00:00]} 4. f4 {[%emt 0:00:00]} Bg7 {[%emt 0:00:00]} 5. Nf3 {[%emt 0:00:00]} O-O {[%emt 0:00:00]} 6. e5 {[%emt 0:00:11]} Ne8 {[%emt 0:00:30]} 7. h4 {[%emt 0:01:55]} h5 {[%emt 0:00:46]} 8. Be3 {[%emt 0:01:13]} c6 {[%emt 0:01:13]} 9. Bd3 {[%emt 0:02:17]} Bg4 {[%emt 0:02:14]} 10. Qd2 {[%emt 0:02:09]} e6 {[%emt 0:03:12]} 11. O-O-O {[%emt 0:06:45]} Nd7 {[%emt 0:08:00]} 12. Rdg1 {[%emt 0:05:30]} Bxf3 {[%emt 0:01:55]} 13. gxf3 {[%emt 0:00:14]} Nb6 {[%emt 0:04:14]} 14. Qg2 {[%emt 0:02:07]} d5 {[%emt 0:09:11]} 15. f5 {[%emt 0:18:17]} exf5 {[%emt 0:03:26]} 16. e6 {[%emt 0:05:18]} fxe6 {[%emt 0:17:20]} 17. Qxg6 {[%emt 0:00:18]} Qd7 {[%emt 0:00:54]} 18. Qxh5 {[%emt 0:01:40]} Nf6 {[%emt 0:01:08]} 19. Qg5 {[%emt 0:02:55]} Nh7 {[%emt 0:02:44]} 20. Qh5 {[%emt 0:04:38]} Qf7 {[%emt 0:04:01]} 21. Rg6 {[%emt 0:08:28]} Kh8 {[%emt 0:03:20]} 22. Bh6 {[%emt 0:03:10]} Rg8 {[%emt 0:05:06]} 23. Rhg1 {[%emt 0:01:57]} Bxh6+ {[%emt 0:01:18]} 24. Qxh6 {[%emt 0:00:09]} Rae8 {[%emt 0:02:42]} 25. f4 {[%emt 0:00:59]} Nd7 {[%emt 0:01:44]} 26. Be2 {[%emt 0:07:17]} Ndf6 {[%emt 0:05:47]} 27. h5 {[%emt 0:05:00]} Re7 {[%emt 0:08:20]} 28. Rh1 {[%emt 0:10:37]} b6 {[%emt 0:06:07]} 29. Nd1 {[%emt 0:03:28]} c5 {[%emt 0:02:21]} 30. dxc5 {[%emt 0:02:11]} bxc5 {[%emt 0:00:06]} 31. Nf2 {[%emt 0:00:41]} Rb8 {[%emt 0:01:19]} 32. Rg3 {[%emt 0:02:43]} Reb7 {[%emt 0:01:17]} 33. Nd3 {[%emt 0:01:04]} Nd7 {[%emt 0:00:36]} 34. Rhg1 {[%emt 0:00:31]} Qf6 {[%emt 0:00:26]} 35. Rg6 {[%emt 0:00:46]} Qd4 {[%emt 0:00:37]} 36. R1g3 {[%emt 0:00:57]} Rxb2 {[%emt 0:01:23]} 37. Nxb2 {[%emt 0:00:42]} Qxb2+ {[%emt 0:00:06]} 38. Kd2 {[%emt 0:00:25]} Qd4+ {[%emt 0:01:52]} 39. Rd3 {[%emt 0:00:20]} Qb2 {[%emt 0:00:30]} 40. Ke3 {[%emt 0:00:00]} c4 {[%emt 0:00:00]} 41. c3 {[%emt 0:08:19]} Qc1+ {[%emt 0:04:18]} 42. Kf2 {[%emt 0:00:30]} Rg8 {[%emt 0:00:32]} 43. Rxg8+ {[%emt 0:00:30]} Kxg8 {[%emt 0:00:06]} 44. Rg3+ {[%emt 0:00:09]} Kf7 {[%emt 0:00:04]} 45. Rg7+ {[%emt 0:00:36]} Kf8 {[%emt 0:00:18]} 46. Rg1+ {[%emt 0:00:12]} 1-0

[Event "FIDE WCCC G12 2018"]
[Site "Santiago de Compostela"]
[Date "2018.11.10"]
[Round "6"]
[White "Menon, Gauri"]
[Black "Pang, Ashley"]
[Result "1-0"]
[ECO "E68"]
[WhiteElo "1592"]
[BlackElo "1604"]
[Annotator "NA"]
[PlyCount "79"]
[EventDate "2018.11.04"]
[EventType "swiss"]
[EventCountry "ESP"]
[SourceTitle "playchess.com"]
[Source "ChessBase"]
[SourceQuality "1"]
[TimeControl "40/5400+30:1800+30"]

1. Nf3 {[%emt 0:00:00]} Nf6 {[%emt 0:00:00]} 2. g3 {[%emt 0:00:00]} g6 {[%emt 0:00:00]} 3. Bg2 {[%emt 0:00:00]} Bg7 {[%emt 0:00:00]} 4. d4 {[%emt 0:00:24]} d6 {[%emt 0:01:08]} 5. c4 {[%emt 0:00:38]} O-O {[%emt 0:01:40]} 6. O-O {[%emt 0:00:08]} Nbd7 {[%emt 0:03:31]} 7. Nc3 {[%emt 0:00:50]} e5 {[%emt 0:02:35]} 8. e4 {[%emt 0:01:00]} Nh5 {[%emt 0:07:09]} 9. d5 {[%emt 0:11:20]} f5 {[%emt 0:10:52]} 10. Ng5 {[%emt 0:12:22]} Ndf6 {[%emt 0:07:07]} 11. b4 {[%emt 0:09:55]} h6 {[%emt 0:09:41]} 12. Ne6 {[%emt 0:07:35]} Bxe6 {[%emt 0:00:15]} 13. dxe6 {[%emt 0:00:13]} Qc8 {[%emt 0:06:58]} 14. exf5 {[%emt 0:03:58]} gxf5 {[%emt 0:04:23]} 15. Bd5 {[%emt 0:04:01]} Re8 {[%emt 0:06:44]} 16. e7+ {[%emt 0:06:39]} Nxd5 {[%emt 0:00:18]} 17. Nxd5 {[%emt 0:04:54]} Nf6 {[%emt 0:02:11]} 18. Bxh6 {[%emt 0:01:35]} Nxd5 {[%emt 0:01:29]} 19. Qxd5+ {[%emt 0:00:11]} Kh7 {[%emt 0:00:53]} 20. Bg5 {[%emt 0:01:10]} Kg6 {[%emt 0:02:07]} 21. Qd2 {[%emt 0:05:59]} Bf6 {[%emt 0:01:22]} 22. h4 {[%emt 0:02:40]} Rxe7 {[%emt 0:01:13]} 23. Bxf6 {[%emt 0:00:37]} Kxf6 {[%emt 0:00:13]} 24. Qh6+ {[%emt 0:05:12]} Kf7 {[%emt 0:00:10]} 25. h5 {[%emt 0:03:29]} Qg8 {[%emt 0:02:50]} 26. Qd2 {[%emt 0:03:01]} Kf6 {[%emt 0:01:47]} 27. Qh6+ {[%emt 0:01:08]} Kf7 {[%emt 0:00:09]} 28. Kg2 {[%emt 0:02:20]} Re6 {[%emt 0:04:28]} 29. Qd2 {[%emt 0:01:08]} Qg4 {[%emt 0:05:35]} 30. Rh1 {[%emt 0:02:39]} c6 {[%emt 0:08:20]} 31. Rh4 {[%emt 0:00:43]} Qg7 {[%emt 0:01:42]} 32. h6 {[%emt 0:02:14]} Qg6 {[%emt 0:01:13]} 33. h7 {[%emt 0:03:37]} Rh8 {[%emt 0:01:31]} 34. Rah1 {[%emt 0:00:13]} Ke7 {[%emt 0:02:19]} 35. Rh6 {[%emt 0:00:36]} Qf7 {[%emt 0:00:23]} 36. Rxe6+ {[%emt 0:01:43]} Qxe6 {[%emt 0:00:28]} 37. Rh6 {[%emt 0:00:12]} Qxc4 {[%emt 0:03:43]} 38. Qxd6+ {[%emt 0:00:50]} Ke8 {[%emt 0:00:28]} 39. Re6+ {[%emt 0:00:24]} Kf7 {[%emt 0:01:34]} 40. Qe7# {[%emt 0:00:00]} 1-0

[Event "FIDE WCCC G12 2018"]
[Site "Santiago de Compostela"]
[Date "2018.11.10"]
[Round "6"]
[White "Oz, Irem Ezra"]
[Black "Mihelic, Vesna"]
[Result "1-0"]
[ECO "C60"]
[WhiteElo "1564"]
[BlackElo "1741"]
[Annotator "NA"]
[PlyCount "119"]
[EventDate "2018.11.04"]
[EventType "swiss"]
[EventCountry "ESP"]
[SourceTitle "playchess.com"]
[Source "ChessBase"]
[SourceQuality "1"]
[TimeControl "40/5400+30:1800+30"]

1. e4 {[%emt 0:00:00]} e5 {[%emt 0:00:00]} 2. Nf3 {[%emt 0:00:12]} Nc6 {[%emt 0:00:02]} 3. Bb5 {[%emt 0:00:30]} g6 {[%emt 0:00:30]} 4. Nc3 {[%emt 0:05:47]} Bg7 {[%emt 0:01:53]} 5. O-O {[%emt 0:01:08]} Nge7 {[%emt 0:02:12]} 6. Nd5 {[%emt 0:06:03]} O-O {[%emt 0:04:19]} 7. Re1 {[%emt 0:02:54]} d6 {[%emt 0:02:42]} 8. Nxe7+ {[%emt 0:01:47]} Qxe7 {[%emt 0:00:28]} 9. c3 {[%emt 0:01:45]} a6 {[%emt 0:05:50]} 10. Ba4 {[%emt 0:01:18]} h6 {[%emt 0:08:22]} 11. h3 {[%emt 0:01:37]} f5 12. d4 {[%emt 0:04:35]} exd4 {[%emt 0:15:11]} 13. exf5 {[%emt 0:03:53]} Qf6 {[%emt 0:00:54]} 14. Bxc6 {[%emt 0:02:38]} bxc6 {[%emt 0:00:07]} 15. Nxd4 {[%emt 0:00:37]} c5 {[%emt 0:06:33]} 16. Qf3 {[%emt 0:11:27]} Bxf5 {[%emt 0:01:50]} 17. Qd5+ {[%emt 0:01:03]} Kh7 {[%emt 0:01:54]} 18. Nxf5 {[%emt 0:00:23]} Qxf5 {[%emt 0:00:15]} 19. Qxf5 {[%emt 0:00:24]} Rxf5 {[%emt 0:00:17]} 20. Bd2 {[%emt 0:02:08]} Raf8 {[%emt 0:02:24]} 21. Be3 {[%emt 0:00:36]} Rb8 {[%emt 0:02:02]} 22. Re2 {[%emt 0:00:32]} Kg8 {[%emt 0:07:03]} 23. Kf1 {[%emt 0:01:17]} h5 {[%emt 0:01:59]} 24. g3 {[%emt 0:01:46]} c4 {[%emt 0:06:51]} 25. Rae1 {[%emt 0:04:05]} Rbf8 {[%emt 0:02:20]} 26. Kg2 {[%emt 0:03:06]} Re8 {[%emt 0:06:02]} 27. Bd2 {[%emt 0:02:44]} Rxe2 {[%emt 0:02:56]} 28. Rxe2 {[%emt 0:00:08]} Kf7 {[%emt 0:00:31]} 29. f4 {[%emt 0:00:56]} c5 {[%emt 0:02:37]} 30. Be3 {[%emt 0:02:05]} Rd5 {[%emt 0:01:38]} 31. Kf3 {[%emt 0:04:20]} Rd3 {[%emt 0:00:47]} 32. Rd2 {[%emt 0:02:05]} Rxd2 {[%emt 0:01:10]} 33. Bxd2 {[%emt 0:00:05]} d5 {[%emt 0:00:07]} 34. g4 {[%emt 0:01:47]} Ke6 {[%emt 0:00:41]} 35. Be1 {[%emt 0:04:37]} d4 {[%emt 0:01:08]} 36. Ke4 {[%emt 0:00:50]} hxg4 {[%emt 0:00:21]} 37. hxg4 {[%emt 0:00:10]} d3 {[%emt 0:00:16]} 38. b3 {[%emt 0:01:30]} cxb3 {[%emt 0:07:08]} 39. axb3 {[%emt 0:00:14]} c4 {[%emt 0:00:35]} 40. bxc4 {[%emt 0:00:00]} a5 {[%emt 0:00:00]} 41. Kxd3 {[%emt 0:01:07]} Kd6 {[%emt 0:04:52]} 42. Bd2 {[%emt 0:00:25]} g5 {[%emt 0:08:53]} 43. f5 {[%emt 0:00:54]} Bf6 {[%emt 0:00:59]} 44. Be3 {[%emt 0:00:44]} Be7 {[%emt 0:06:16]} 45. Bd4 {[%emt 0:00:10]} a4 {[%emt 0:00:38]} 46. Kc2 {[%emt 0:00:08]} Kc6 {[%emt 0:02:06]} 47. Kb2 {[%emt 0:00:06]} Kd7 {[%emt 0:01:05]} 48. c5 {[%emt 0:00:46]} Kc6 {[%emt 0:00:15]} 49. c4 {[%emt 0:00:09]} Kb7 {[%emt 0:00:56]} 50. Ka3 {[%emt 0:00:06]} Kc6 {[%emt 0:00:06]} 51. Kxa4 {[%emt 0:00:05]} Bf8 {[%emt 0:00:23]} 52. Kb3 {[%emt 0:00:29]} Kd7 {[%emt 0:00:44]} 53. Kc3 {[%emt 0:00:03]} Kc6 {[%emt 0:00:07]} 54. Kd3 {[%emt 0:00:04]} Kd7 {[%emt 0:01:06]} 55. Ke4 {[%emt 0:00:04]} Ke7 {[%emt 0:00:40]} 56. Kd5 {[%emt 0:00:11]} Kd7 {[%emt 0:00:11]} 57. c6+ {[%emt 0:00:05]} Kc8 {[%emt 0:00:06]} 58. Be5 {[%emt 0:00:11]} Be7 {[%emt 0:00:58]} 59. Ke6 {[%emt 0:00:07]} Bf8 {[%emt 0:00:12]} 60. f6 {[%emt 0:00:09]} 1-0

[Event "FIDE WCCC G12 2018"]
[Site "Santiago de Compostela"]
[Date "2018.11.10"]
[Round "6"]
[White "Jiang, Kate Yuhua"]
[Black "Wang, Ellen"]
[Result "1/2-1/2"]
[ECO "B22"]
[WhiteElo "1201"]
[BlackElo "1711"]
[Annotator "NA RC"]
[PlyCount "129"]
[EventDate "2018.11.04"]
[EventType "swiss"]
[EventCountry "ESP"]
[SourceTitle "playchess.com"]
[Source "ChessBase"]
[SourceQuality "1"]
[TimeControl "40/5400+30:1800+30"]

1. e4 {[%emt 0:00:00]} c5 {[%emt 0:00:00]} 2. c3 {[%emt 0:00:00]} d5 {[%emt 0:00:00]} 3. exd5 {[%emt 0:00:00]} Qxd5 {[%emt 0:00:00]} 4. d4 {[%emt 0:00:00]} Nf6 {[%emt 0:00:00]} 5. Nf3 {[%emt 0:00:06]} Bg4 {[%emt 0:00:00]} 6. Be2 {[%emt 0:00:08]} e6 {[%emt 0:00:00]} 7. Be3 {[%emt 0:00:38]} cxd4 {[%emt 0:00:34]} 8. Bxd4 {[%emt 0:02:45]} Nc6 {[%emt 0:02:16]} 9. O-O {[%emt 0:01:45]} Be7 {[%emt 0:03:19]} 10. Nbd2 {[%emt 0:06:58]} O-O {[%emt 0:03:56]} 11. Re1 {[%emt 0:04:48]} Rfd8 {[%emt 0:03:13]} 12. Qb3 {[%emt 0:04:15]} Nxd4 {[%emt 0:05:17]} 13. Nxd4 {[%emt 0:00:31]} Bxe2 {[%emt 0:01:45]} 14. Qxd5 {[%emt 0:01:36]} Nxd5 {[%emt 0:01:06]} 15. Rxe2 {[%emt 0:00:47]} Bf6 {[%emt 0:01:34]} 16. N2f3 {[%emt 0:01:40]} Rac8 {[%emt 0:03:44]} 17. Rd1 {[%emt 0:02:17]} Nb6 {[%emt 0:02:32]} 18. h3 {[%emt 0:04:09]} Rd5 {[%emt 0:02:24]} 19. Rde1 {[%emt 0:02:07]} a5 {[%emt 0:06:14]} 20. Re3 {[%emt 0:05:53]} Nc4 {[%emt 0:04:51]} 21. R3e2 {[%emt 0:00:10]} g6 {[%emt 0:02:19]} 22. b3 {[%emt 0:02:36]} Na3 {[%emt 0:09:33]} 23. c4 {[%emt 0:02:13]} Rd7 {[%emt 0:01:13]} 24. Nc2 {[%emt 0:01:04]} Nxc2 {[%emt 0:00:46]} 25. Rxc2 {[%emt 0:00:04]} Rcd8 {[%emt 0:01:07]} 26. Kf1 {[%emt 0:00:49]} Kf8 {[%emt 0:01:28]} 27. Ke2 {[%emt 0:03:39]} Ke7 {[%emt 0:03:56]} 28. Rb1 {[%emt 0:02:52]} Bg7 {[%emt 0:05:47]} 29. Rd2 {[%emt 0:03:18]} Rxd2+ {[%emt 0:02:17]} 30. Nxd2 {[%emt 0:00:03]} f5 {[%emt 0:00:15]} 31. Nf3 {[%emt 0:02:03]} e5 {[%emt 0:04:15]} 32. b4 {[%emt 0:03:08]} e4 {[%emt 0:01:40]} 33. Ne1 {[%emt 0:01:49]} axb4 {[%emt 0:01:48]} 34. Rxb4 {[%emt 0:00:52]} Rd7 {[%emt 0:00:54]} 35. Rb3 {[%emt 0:00:23]} Kd6 {[%emt 0:02:05]} 36. Nc2 {[%emt 0:03:07]} Kc5 {[%emt 0:04:05]} 37. Ne3 {[%emt 0:01:35]} Bd4 {[%emt 0:07:34]} 38. Rb5+ {[%emt 0:02:05]} Kc6 {[%emt 0:00:06]} 39. Nd5 {[%emt 0:01:31]} Bc5 {[%emt 0:00:31]} 40. a4 {[%emt 0:00:00]} b6 {[%emt 0:00:00]} 41. Rb2 {[%emt 0:11:20]} Ra7 {[%emt 0:04:22]} 42. Ra2 {[%emt 0:00:58]} Bd4 {[%emt 0:02:14]} 43. Rd2 {[%emt 0:03:02]} Bg7 {[%emt 0:02:21]} 44. Ra2 {[%emt 0:00:36]} Kc5 {[%emt 0:01:06]} 45. f3 {[%emt 0:02:11]} Bd4 {[%emt 0:02:56]} 46. fxe4 {[%emt 0:01:42]} fxe4 {[%emt 0:00:08]} 47. Ne3 {[%emt 0:19:41]} Kb4 {[%emt 0:03:18]} 48. Rd2 {[%emt 0:00:43]} Bxe3 {[%emt 0:15:44]} 49. Kxe3 {[%emt 0:00:09]} Kxc4 {[%emt 0:01:33]} 50. Rb2 {[%emt 0:01:38]} Kc5 {[%emt 0:01:53]} 51. Rb5+ {[%emt 0:00:21]} Kc6 {[%emt 0:00:15]} 52. Rb4 {[%emt 0:00:12]} Re7 {[%emt 0:01:57]} 53. Rb5 {[%emt 0:01:35]} Re6 {[%emt 0:00:42]} 54. g4 {[%emt 0:01:42]} h6 {[%emt 0:02:27]} 55. h4 {[%emt 0:00:17]} Rf6 {[%emt 0:02:52]} 56. Kxe4 {[%emt 0:00:52]} Rf1 {[%emt 0:00:11]} 57. h5 {[%emt 0:00:40]} gxh5 {[%emt 0:02:31]} 58. Rxh5 {[%emt 0:02:23]} Rf6 {[%emt 0:00:59]} 59. Ke5 {[%emt 0:01:32]} Rd6 {[%emt 0:01:12]} 60. Ke4 {[%emt 0:00:19]} Rg6 {[%emt 0:00:48]} 61. Kf4 {[%emt 0:02:04]} Rd6 {[%emt 0:00:45]} 62. Ke4 {[%emt 0:03:42]} Re6+ {[%emt 0:01:09]} 63. Kf4 {[%emt 0:00:47]} Rg6 {[%emt 0:00:44]} 64. Kf5 {[%emt 0:00:52]} Rd6 {[%emt 0:00:15]} 65. Ke4 1/2-1/2

[Event "FIDE WCCC G12 2018"]
[Site "Santiago de Compostela"]
[Date "2018.11.11"]
[Round "7"]
[White "Van Foreest, Machteld"]
[Black "Enkhsaran, Batsaikhan"]
[Result "0-1"]
[ECO "B00"]
[WhiteElo "2003"]
[BlackElo "1614"]
[Annotator "NA RC"]
[PlyCount "58"]
[EventDate "2018.11.04"]
[EventType "swiss"]
[EventCountry "ESP"]
[SourceTitle "playchess.com"]
[Source "ChessBase"]
[SourceQuality "1"]
[TimeControl "40/5400+30:1800+30"]

1. e4 {[%emt 0:00:00]} b6 {[%emt 0:00:00]} 2. d4 {[%emt 0:01:52]} Bb7 {[%emt 0:00:12]} 3. Nc3 {[%emt 0:00:43]} e6 {[%emt 0:02:14]} 4. Nf3 {[%emt 0:02:33]} Nf6 {[%emt 0:00:27]} 5. Bd3 {[%emt 0:00:43]} Bb4 {[%emt 0:00:28] LiveBook: 237 Games} 6. Qe2 {[%emt 0:00:54]} h6 {[%emt 0:07:40]} (6... d5 $11 7. exd5 Nxd5) 7. Bd2 {[%emt 0:02:42] B00: Queen's Fianchetto Defence, Nimzowitsch Defence} Be7 {[%emt 0:05:54]} (7... d5 $11 8. e5 Bxc3 9. Bxc3 Ne4) (7... d6 8. a3 Bxc3 9. Bxc3 a5 10. Bd2 Nbd7 11. O-O c5 12. e5 Bxf3 13. Qxf3 dxe5 14. dxe5 Nxe5 {1-0 (24) Labus,V (2072)-Cecaric,M (1995) Novi Banovci 2017}) 8. h3 $146 {[%emt 0:01:34]} ({Predecessor:} 8. O-O a5 9. Nd1 Na6 10. c4 Nb4 11. Bb1 d5 12. exd5 exd5 13. Bxb4 axb4 14. Re1 dxc4 15. Ne3 Ra5 16. Nxc4 Rf5 17. Bxf5 {1-0 (18) Riera Sola,L (1950)-Codina Espinasa,J (1841) Moia 2013}) 8... c5 {[%emt 0:01:56]} 9. dxc5 {[%emt 0:03:44]} Bxc5 {[%emt 0:00:26]} 10. e5 {[%emt 0:06:33]} Nd5 {[%emt 0:01:53]} 11. Ne4 {[%emt 0:02:17]} d6 {[%emt 0:04:14]} (11... Nb4 $142) 12. Nxc5 {[%emt 0:04:50]} ({Don't take} 12. exd6 Bxd6 13. Bb5+ Kf8 $16) (12. Rd1 $16) 12... dxc5 {[%emt 0:00:37]} 13. Qe4 {[%emt 0:02:24]} Qc7 {[%emt 0:07:24]} 14. Qg4 {[%emt 0:01:32]} Nc6 {[%emt 0:06:48]} 15. Be4 {[%emt 0:25:26]} ({Of course not} 15. Qxg7 O-O-O $17) 15... Nxe5 {[%emt 0:04:44]} 16. Qxg7 {[%emt 0:06:55]} Nxf3+ {[%emt 0:00:49]} 17. Bxf3 {[%emt 0:00:21]} O-O-O {[%emt 0:00:58]} 18. O-O-O {[%emt 0:01:12]} Rdg8 {[%emt 0:01:07]} 19. Qxh6 {[%emt 0:06:22]} Rxh6 {[%emt 0:00:38]} 20. Bxh6 {[%emt 0:00:00]} c4 {[%emt 0:02:10]} 21. c3 $19 {[%emt 0:01:06]} b5 {[%emt 0:01:56]} 22. Rd4 {[%emt 0:03:05]} b4 {[%emt 0:04:28]} 23. Rhd1 {[%emt 0:01:15]} bxc3 {[%emt 0:00:31]} 24. bxc3 {[%emt 0:00:34]} Qc5 {[%emt 0:02:00]} 25. Kc2 {[%emt 0:04:44]} Bc6 {[%emt 0:02:43]} 26. Rb1 {[%emt 0:03:54]} Qa3 {[%emt 0:11:06]} 27. Bd2 {[%emt 0:01:33]} Ba4+ {[%emt 0:00:12]} 28. Rb3 {[%emt 0:00:36]} cxb3+ {[%emt 0:00:46]} 29. Kd3 {[%emt 0:00:05]} b2 {[%emt 0:00:46]} 0-1